[Event "Marienbad Open IM B 2025"]
[Site "Marianske Lazne"]
[Date "2025.01.18"]
[Round "1.11"]
[White "Senthil Maran K"]
[Black "Konopka, Michal"]
[Result "1/2-1/2"]
[Annotator "TA"]
[ECO "D71"]
[WhiteElo "2398"]
[BlackElo "2321"]
[PlyCount "51"]
[EventDate "2025.01.18"]
[EventType "tourn"]
[EventCountry "CZE"]
[SourceTitle "playchess.com"]
[Source "ChessBase"]
[SourceQuality "1"]
[TimeControl "40/5400+30:1800+30"]

{[%evp 14,51,34,47,43,35,42,48,42,38,39,0,13,0,8,-20,-8,-17,-13,-41,-22,-24,-4,-28,-17,0,0,-22,19,0,26,12,25,17,19,0,7,14,15,0]} 1. d4 {[%emt 0:13:32]} Nf6 {[%emt 0:00:25]} 2. c4 {[%emt 0:01:19]} g6 {[%emt 0:00:46]} 3. g3 {[%emt 0:00:11]} c6 {[%emt 0:02:24]} 4. Nc3 {[%emt 0:04:27]} d5 {[%emt 0:01:58]} 5. Qb3 {[%emt 0:00:54]} Bg7 {[%emt 0:02:06]} 6. Bg2 {[%emt 0:01:35]} e6 {[%emt 0:08:16]} 7. Nf3 {[%emt 0:02:09]} O-O {[%emt 0:00:05]} 8. O-O {[%emt 0:00:23]} b6 {[%emt 0:03:52]} 9. Bf4 {[%emt 0:03:06]} Ba6 {[%emt 0:03:26]} 10. cxd5 {[%emt 0:01:07]} cxd5 {[%emt 0:20:20]} 11. Rfc1 {[%emt 0:06:31]} Nc6 {[%emt 0:03:44]} 12. Qa4 {[%emt 0:02:37]} Bb7 $1 {[%emt 0:00:45]} 13. Nb5 {[%emt 0:02:33][%cal Bc3b5,Bb5a3,Ba3c2,Bc2e1,Be1d3][%mdl 32]} Ne8 {[%emt 0:03:53] Wards off Nd6} 14. Ne5 {[%emt 0:18:05]} Nxe5 {[%emt 0:05:30]} 15. Bxe5 {[%emt 0:00:14]} a6 {[%emt 0:06:49]} 16. Na3 {[%emt 0:10:18]} f6 {[%emt 0:10:39]} 17. Bf4 {[%emt 0:00:44]} Rf7 {[%emt 0:00:17]} 18. Bh3 {[%emt 0:03:21]} f5 {[%emt 0:03:39]} (18... g5 {with more complications.} 19. Bxe6 gxf4 20. Bxf7+ Kxf7 21. gxf4 Qe7) 19. Be5 {[%emt 0:02:38]} Nd6 {[%emt 0:01:05]} 20. Bxg7 {[%emt 0:04:14]} Kxg7 {[%emt 0:00:32]} 21. Nc2 {[%emt 0:05:19]} Rc8 {[%emt 0:01:31] aiming for ...Rfc7.} 22. Ne1 {[%emt 0:00:40]} Rc4 {[%emt 0:01:27]} 23. Qd1 {[%emt 0:01:15]} Rfc7 {[%emt 0:00:19]} 24. b3 {[%emt 0:01:19]} Rxc1 {[%emt 0:00:07]} 25. Rxc1 {[%emt 0:00:06]} a5 {[%emt 0:00:57]} 26. Nd3 {[%emt 0:05:48]} 1/2-1/2

[Event "Marienbad Open IM B 2025"]
[Site "Marianske Lazne"]
[Date "2025.01.18"]
[Round "1.12"]
[White "Van der Hagen, Loek"]
[Black "Bhagat Kush"]
[Result "1-0"]
[Annotator "TA"]
[ECO "B68"]
[WhiteElo "2299"]
[BlackElo "2294"]
[PlyCount "81"]
[EventDate "2025.01.18"]
[EventType "tourn"]
[EventCountry "CZE"]
[SourceTitle "playchess.com"]
[Source "ChessBase"]
[SourceQuality "1"]
[TimeControl "40/5400+30:1800+30"]

{[%evp 26,81,32,28,28,36,41,26,41,12,14,0,37,36,37,44,29,32,97,91,104,100,99,60,73,62,177,170,224,225,214,217,219,219,239,242,242,235,286,279,281,275,276,275,291,216,325,337,333,342,357,345,341,327,378,357,333,333]} 1. e4 {[%emt 0:00:03]} c5 {[%emt 0:00:59]} 2. Nf3 {[%emt 0:00:07]} d6 {[%emt 0:00:07]} 3. d4 cxd4 4. Nxd4 {[%emt 0:00:09]} Nf6 {[%emt 0:00:16]} 5. Nc3 {[%emt 0:00:04]} Nc6 {[%emt 0:00:05]} 6. Bg5 {[%emt 0:00:06]} e6 {[%emt 0:00:06]} 7. Qd2 {[%emt 0:00:16]} a6 {[%emt 0:00:37]} 8. O-O-O {[%emt 0:00:09]} Bd7 {[%emt 0:00:05]} 9. f4 {[%emt 0:00:09]} Be7 {[%emt 0:00:43]} 10. Nf3 {[%emt 0:00:27]} b5 {[%emt 0:00:23]} 11. e5 {[%emt 0:00:18]} b4 {[%emt 0:01:16]} 12. exf6 {[%emt 0:00:16]} bxc3 {[%emt 0:01:00]} 13. Qxc3 {[%emt 0:00:06]} gxf6 {[%emt 0:00:08]} 14. Bh4 {[%emt 0:00:11]} Rg8 {[%emt 0:00:56]} 15. Kb1 {[%emt 0:00:18]} Rb8 {[%emt 0:18:36]} 16. g3 {[%emt 0:04:39]} d5 {[%emt 0:10:05]} 17. Be2 {[%emt 0:16:04][%cal Of3d4]} Nb4 {[%emt 0:32:18]} 18. Qd2 {[%emt 0:20:26]} Qa5 {[%emt 0:23:18]} (18... Nxa2 $5 19. Kxa2 Bb4 $17) 19. a3 {[%emt 0:00:48][%cal Oh1e1]} Nc6 {[%emt 0:01:37][%cal Ob8b2] ...Rxb2+! is the strong threat.} 20. Qxa5 {[%emt 0:00:13]} Nxa5 {[%emt 0:00:01]} 21. Bxa6 {[%emt 0:17:25]} Rb6 {[%emt 0:02:53]} (21... Kf8 $14) 22. Bd3 $16 {[%emt 0:01:41]} Nc4 {[%emt 0:00:08]} 23. Bxc4 {[%emt 0:07:07]} (23. Bxh7 Nxb2 (23... Rxb2+ 24. Ka1 $14) (23... Nxa3+ 24. Ka1 $11) 24. Kc1 Rh8 $17) 23... dxc4 {[%emt 0:00:03][%cal Bd5c4,Bc4c3][%mdl 32]} 24. Nd2 {[%emt 0:09:37]} c3 {[%emt 0:05:58]} 25. Nc4 {[%emt 0:00:04]} Rb8 {[%emt 0:00:26]} (25... Ra6 $1 $14) 26. b3 $18 {[%emt 0:01:47]} Bb5 {[%emt 0:00:46]} (26... Bc6 $142) 27. Nd6+ {[%emt 0:04:24]} Bxd6 {[%emt 0:00:17]} 28. Rxd6 {[%emt 0:00:04]} Ke7 {[%emt 0:00:35]} 29. Rd4 {[%emt 0:01:22]} Bc6 {[%emt 0:00:45]} 30. Re1 {[%emt 0:00:35]} Rgd8 {[%emt 0:00:19]} 31. Rc4 {[%emt 0:01:47]} Rb6 {[%emt 0:00:27]} 32. Re3 {[%emt 0:04:08]} Rd1+ {[%emt 0:00:38]} 33. Ka2 {[%emt 0:00:01]} Rd2 {[%emt 0:00:33]} 34. Rexc3 {[%emt 0:00:05]} Bd7 {[%emt 0:00:17]} 35. Rd3 {[%emt 0:03:15]} Rd6 {[%emt 0:00:44]} (35... Rxd3 $142 36. cxd3 Rd6) 36. Rxd6 {[%emt 0:00:23]} Rxd6 {[%emt 0:00:01]} 37. a4 {[%emt 0:00:36][%cal Ba3a4,Ba4a5][%mdl 32]} Rd2 {[%emt 0:00:07]} 38. a5 {[%emt 0:03:24]} Bb5 {[%emt 0:00:06]} 39. Rc5 {[%emt 0:00:25]} Bd3 {[%emt 0:00:08]} 40. Kb1 {[%emt 0:00:53]} Bf1 {[%emt 0:01:15]} 41. Rc7+ {[%emt 0:30:51]} 1-0

[Event "Marienbad Open IM B 2025"]
[Site "Marianske Lazne"]
[Date "2025.01.18"]
[Round "1.13"]
[White "Ochedzan, Filip"]
[Black "Roesemann, Rainer"]
[Result "1/2-1/2"]
[Annotator "TA"]
[ECO "B33"]
[WhiteElo "2138"]
[BlackElo "2276"]
[PlyCount "174"]
[EventDate "2025.01.18"]
[EventType "tourn"]
[EventCountry "CZE"]
[SourceTitle "playchess.com"]
[Source "ChessBase"]
[SourceQuality "1"]
[TimeControl "40/5400+30:1800+30"]

{[%evp 10,173,51,54,62,56,64,18,25,13,49,31,35,28,27,-27,22,-26,-39,-19,0,0,21,14,25,-45,-49,-39,-4,-4,-3,-13,16,9,8,0,0,-9,-9,-7,-8,-1,7,-9,-9,-19,-4,-21,-9,-29,-21,-24,0,0,0,0,0,0,0,-31,0,0,0,0,0,0,0,-6,0,-10,0,0,0,0,0,0,0,-14,-14,-14,0,0,0,0,0,0,0,0,0,0,0,0,0,-1,-1,-1,-1,-1,-1,-1,-1,-2,-2,-2,-2,-2,-2,-2,0,0,0,-8,-8,-8,-8,-8,-8,-8,-8,-8,-8,-8,-8,-8,-8,-8,0,-8,-8,-8,-8,-8,-8,-8,-8,-8,0,-8,-8,-8,-8,-8,-8,-8,-8,-8,-8,-8,0,0,0,0,0,0,0,0,0,0,0,0,0,0,0,0,0,0]} 1. e4 {[%emt 0:00:04]} c5 {[%emt 0:00:24]} 2. Nf3 {[%emt 0:00:04]} Nc6 {[%emt 0:00:13]} 3. d4 {[%emt 0:00:08]} cxd4 {[%emt 0:00:33]} 4. Nxd4 {[%emt 0:00:05]} Nf6 {[%emt 0:00:23]} 5. Nc3 {[%emt 0:00:06]} g6 {[%emt 0:00:37]} 6. Nxc6 {[%emt 0:04:15]} dxc6 {[%emt 0:03:10]} 7. Qxd8+ {[%emt 0:06:12]} Kxd8 {[%emt 0:00:07]} 8. Bg5 {[%emt 0:06:02]} (8. Bc4 $14) 8... Be6 $11 {[%emt 0:01:26]} 9. O-O-O+ {[%emt 0:00:39]} Ke8 {[%emt 0:08:54]} 10. f3 {[%emt 0:08:20]} Bg7 {[%emt 0:01:47]} 11. Be2 {[%emt 0:01:20]} Nd7 {[%emt 0:01:09]} 12. a3 {[%emt 0:08:40]} (12. Bd2 $142) 12... Nb6 {[%emt 0:02:49]} (12... Bxc3 13. bxc3 f6) 13. Rhe1 {[%emt 0:13:23]} (13. Bd2 {deserves consideration.}) 13... Bxc3 {[%emt 0:02:49]} 14. bxc3 {[%emt 0:00:04]} Bc4 {[%emt 0:00:17]} 15. Bd3 {[%emt 0:05:17]} f6 {[%emt 0:02:51]} 16. Be3 {[%emt 0:00:45]} Be6 {[%emt 0:00:51]} 17. Bxb6 {[%emt 0:01:44]} ({White should try} 17. f4 $11) 17... axb6 $15 {[%emt 0:00:11]} 18. Kb2 {[%emt 0:00:29]} b5 {[%emt 0:00:43]} 19. f4 {[%emt 0:01:22]} Rd8 {[%emt 0:36:15]} 20. f5 {[%emt 0:03:20]} gxf5 {[%emt 0:00:55]} 21. exf5 {[%emt 0:00:01]} Bd5 {[%emt 0:00:15]} 22. Re2 {[%emt 0:03:23]} Rg8 {[%emt 0:03:38]} 23. Rde1 {[%emt 0:00:09]} Rd7 {[%emt 0:00:42]} 24. g3 {[%emt 0:00:31][%cal Oa3a4]} Rg4 {[%emt 0:00:45]} 25. Re3 {[%emt 0:03:15]} Kf7 {[%emt 0:02:50]} 26. h3 {[%emt 0:08:10]} Ra4 27. g4 {[%emt 0:00:16]} h6 {[%emt 0:03:44]} 28. Rd1 {[%emt 0:09:21]} Ke8 {[%emt 0:01:20]} 29. Bf1 {[%emt 0:03:49]} Rf4 {[%emt 0:05:43][%cal Oh6h5]} 30. Red3 {[%emt 0:02:16]} Rc7 {[%emt 0:02:42]} 31. Rd4 Rxd4 {[%emt 0:03:41]} 32. Rxd4 $11 {[%emt 0:05:11][%cal Of1b5][%mdl 4096] Endgame KRB-KRB} Rd7 {[%emt 0:00:20]} 33. Kc1 {[%emt 0:02:37]} Rd8 {[%emt 0:00:38]} 34. Kd2 e5 (34... Bf7 {simplifies} 35. Rxd8+ Kxd8 36. Ke3 Kd7) 35. fxe6 {[%emt 0:01:16]} Ke7 {[%emt 0:05:56]} 36. Ke3 {[%emt 0:04:45]} Ra8 ({Of course not} 36... Kxe6 37. a4 $16) 37. Bxb5 $1 {[%emt 0:00:40]} Rxa3 {[%emt 0:03:51]} 38. Kd2 {[%emt 0:00:29]} Kxe6 {[%emt 0:00:23]} (38... cxb5 39. Rxd5 b4 40. Rd7+ (40. cxb4 Rxh3 41. Rb5 Rg3 $15) 40... Kxe6 41. Rh7 (41. Rxb7 Rxc3 42. Rb6+ Ke7 $11) 41... Rxc3 (41... bxc3+ 42. Kd3 $16) 42. Rxh6) 39. Bc4 {[%emt 0:00:19]} Ra1 {[%emt 0:01:44]} 40. Bxd5+ {[%emt 0:00:49]} cxd5 {[%emt 0:00:10] KR-KR} 41. c4 {[%emt 0:09:18]} dxc4 {[%emt 0:09:44]} 42. Rxc4 {[%emt 0:00:11]} Rh1 {[%emt 0:01:25]} 43. Ke3 {[%emt 0:01:30]} Rxh3+ {[%emt 0:01:01]} 44. Kf4 {[%emt 0:00:05]} Rh2 {[%emt 0:02:47]} 45. Rb4 {[%emt 0:00:46]} Rxc2 {[%emt 0:01:06]} 46. Rxb7 {[%emt 0:00:22]} Rc3 {[%emt 0:04:01]} 47. Rh7 {[%emt 0:00:56]} Rh3 {[%emt 0:00:25]} 48. Rb7 {[%emt 0:00:10]} h5 {[%emt 0:00:38]} 49. Rb6+ {[%emt 0:00:34]} Kf7 {[%emt 0:00:10]} 50. gxh5 {[%emt 0:00:05]} Rxh5 {[%emt 0:00:09]} 51. Ra6 {[%emt 0:00:22]} Kg6 {[%emt 0:00:08]} 52. Rb6 {[%emt 0:00:17]} Rh4+ {[%emt 0:00:12]} 53. Kg3 {[%emt 0:00:14]} Ra4 {[%emt 0:00:13]} 54. Rb3 {[%emt 0:00:12]} Kg5 {[%emt 0:00:08]} 55. Rb5+ {[%emt 0:00:21]} f5 {[%emt 0:00:07]} 56. Rb3 {[%emt 0:00:06]} Rg4+ {[%emt 0:01:50]} 57. Kf2 {[%emt 0:00:13]} Rh4 {[%emt 0:01:38]} 58. Ra3 {[%emt 0:00:22]} Kg4 {[%emt 0:04:40]} 59. Ra4+ {[%emt 0:00:48]} f4 {[%emt 0:00:20]} 60. Ra3 {[%emt 0:00:22]} Rh2+ {[%emt 0:00:19]} 61. Kg1 {[%emt 0:00:36]} Rb2 {[%emt 0:00:37]} 62. Kf1 {[%emt 0:00:21]} Rd2 {[%emt 0:01:12]} 63. Rb3 {[%emt 0:00:30]} Kf5 {[%emt 0:01:36]} 64. Rb5+ {[%emt 0:01:04]} Ke4 {[%emt 0:00:22]} 65. Rb4+ {[%emt 0:00:56]} Kf3 {[%emt 0:00:30][%cal Rd2d1]} 66. Rb3+ {[%emt 0:00:06]} Kg4 {[%emt 0:00:06]} 67. Ra3 {[%emt 0:00:11]} Rh2 {[%emt 0:02:30]} 68. Kg1 {[%emt 0:00:14]} Re2 {[%emt 0:00:18]} 69. Kf1 {[%emt 0:00:16]} Re4 {[%emt 0:02:31]} 70. Kf2 {[%emt 0:00:13]} Rb4 {[%emt 0:00:18]} 71. Kg2 {[%emt 0:00:27]} Rd4 {[%emt 0:00:33]} 72. Kf2 {[%emt 0:00:54]} Re4 {[%emt 0:00:08]} 73. Rb3 {[%emt 0:00:14]} Ra4 {[%emt 0:00:07]} 74. Kg2 {[%emt 0:00:13]} Rc4 {[%emt 0:00:16]} 75. Kf2 {[%emt 0:00:28]} Rc2+ {[%emt 0:01:17]} 76. Kf1 {[%emt 0:00:16]} Rh2 {[%emt 0:00:18]} 77. Kg1 {[%emt 0:00:27]} Re2 {[%emt 0:00:06]} 78. Kf1 {[%emt 0:00:09]} Re3 {[%emt 0:00:22]} 79. Rxe3 $1 {[%emt 0:00:46]} fxe3 {[%emt 0:00:09] KP-K. Black is a pawn up.} 80. Ke2 {[%emt 0:00:04]} Kf4 {[%emt 0:00:07]} 81. Ke1 {[%emt 0:00:11]} Ke5 {[%emt 0:00:31]} (81... Kf3 $5 82. Kf1 $8 Kg4 $11) 82. Ke2 {[%emt 0:00:08]} Ke4 {[%emt 0:00:10]} (82... Kd4 $5) 83. Ke1 {[%emt 0:00:08]} Kd4 {[%emt 0:00:48]} (83... Kd3 $5 84. Kd1 $8 Kd4 $11) 84. Ke2 {[%emt 0:00:06]} Ke4 {[%emt 0:00:06][%cal Bd4e4,Be4d3,Bd3e3][%mdl 32]} 85. Ke1 {[%emt 0:00:07]} Kd3 {[%emt 0:00:05] ( -> ...e2)} (85... Kd4 $5) 86. Kd1 {[%emt 0:00:07]} e2+ {[%emt 0:00:06]} 87. Ke1 {[%emt 0:00:04]} Ke3 1/2-1/2

[Event "Marienbad Open IM B 2025"]
[Site "Marianske Lazne"]
[Date "2025.01.18"]
[Round "1.14"]
[White "Tichy, Stepan"]
[Black "Sliwerski, Radoslaw"]
[Result "1/2-1/2"]
[Annotator "RC"]
[ECO "A15"]
[WhiteElo "2184"]
[BlackElo "2040"]
[PlyCount "137"]
[EventDate "2025.01.18"]
[EventType "tourn"]
[EventCountry "CZE"]
[SourceTitle "playchess.com"]
[Source "ChessBase"]
[SourceQuality "1"]
[TimeControl "40/5400+30:1800+30"]

1. c4 {[%emt 0:00:01]} Nf6 {[%emt 0:00:02]} 2. g3 {[%emt 0:00:29]} e5 {[%emt 0:00:24]} 3. Bg2 {[%emt 0:00:32]} d5 {[%emt 0:00:07]} 4. cxd5 {[%emt 0:01:10]} Nxd5 {[%emt 0:00:04]} 5. Nc3 {[%emt 0:02:06]} Nb6 {[%emt 0:00:03]} 6. Nf3 {[%emt 0:00:46]} Nc6 {[%emt 0:00:03]} 7. O-O {[%emt 0:00:56]} Be7 {[%emt 0:00:34]} 8. a4 {[%emt 0:07:22]} a5 {[%emt 0:03:40]} 9. Nb5 {[%emt 0:03:45]} e4 {[%emt 0:10:24]} 10. Ne1 {[%emt 0:01:17]} f5 {[%emt 0:03:54]} 11. d3 {[%emt 0:05:41]} O-O {[%emt 0:26:31]} 12. Qb3+ {[%emt 0:05:09]} Qd5 {[%emt 0:12:08]} 13. Qxd5+ {[%emt 0:00:53]} Nxd5 {[%emt 0:00:01]} 14. dxe4 {[%emt 0:00:22]} fxe4 {[%emt 0:00:12]} 15. Bxe4 {[%emt 0:00:38]} Ncb4 {[%emt 0:01:22]} 16. Nd3 {[%emt 0:17:47]} c6 {[%emt 0:02:59]} 17. Nc3 {[%emt 0:04:11]} Bh3 {[%emt 0:12:27]} 18. Nxd5 {[%emt 0:04:19]} Nxd5 {[%emt 0:08:34]} 19. Rd1 {[%emt 0:05:12]} Rad8 {[%emt 0:05:30]} 20. Nf4 {[%emt 0:05:42]} Nxf4 {[%emt 0:00:56]} 21. Bxf4 {[%emt 0:00:03]} Bf6 {[%emt 0:00:53]} 22. Bc7 {[%emt 0:01:13]} Bxb2 {[%emt 0:04:56]} 23. Rxd8 {[%emt 0:02:29]} Rxd8 {[%emt 0:01:18]} 24. Bxd8 {[%emt 0:00:19]} Bxa1 {[%emt 0:00:03]} 25. Bxa5 {[%emt 0:00:08]} Bd4 {[%emt 0:00:55]} 26. e3 {[%emt 0:00:47]} Ba7 {[%emt 0:00:24]} 27. Bc3 {[%emt 0:00:26]} g6 {[%emt 0:01:11]} 28. Bd4 {[%emt 0:01:17]} c5 {[%emt 0:01:45]} 29. Bd5+ {[%emt 0:00:27]} Kf8 {[%emt 0:00:05]} 30. Bc3 {[%emt 0:00:23]} Bd7 {[%emt 0:00:40]} 31. Bxb7 {[%emt 0:02:31]} Bxa4 {[%emt 0:00:03]} 32. Ba6 {[%emt 0:00:07]} Bb3 {[%emt 0:00:20]} 33. Kf1 {[%emt 0:00:19]} Bd5 {[%emt 0:00:30]} 34. Ke2 {[%emt 0:00:17]} Ke7 {[%emt 0:00:09]} 35. Kd3 {[%emt 0:00:12]} Kd6 {[%emt 0:01:07]} 36. Bc4 {[%emt 0:02:12]} Bf3 {[%emt 0:01:06]} 37. e4 {[%emt 0:00:44]} Ke7 {[%emt 0:01:02]} 38. Ke3 {[%emt 0:00:21]} Bg4 {[%emt 0:00:11]} 39. f3 {[%emt 0:00:48]} Bd7 {[%emt 0:00:20]} 40. h4 {[%emt 0:04:29]} Bb8 {[%emt 0:00:32]} 41. f4 {[%emt 0:33:04]} h5 {[%emt 0:30:42]} 42. e5 {[%emt 0:01:22]} Bc7 {[%emt 0:01:56]} 43. Bd5 {[%emt 0:03:18]} Bb6 {[%emt 0:00:45]} 44. Bc4 {[%emt 0:01:48]} Bc6 {[%emt 0:00:00]} 45. Be1 {[%emt 0:00:00]} Bd7 {[%emt 0:00:00]} 46. Bf2 {[%emt 0:00:00]} Bh3 {[%emt 0:00:00]} 47. Kd3 {[%emt 0:00:00]} Bf5+ {[%emt 0:00:00]} 48. Kc3 {[%emt 0:00:00]} Be4 {[%emt 0:00:00]} 49. Kb3 {[%emt 0:00:00]} Bc6 {[%emt 0:00:00]} 50. Be1 Be4 {[%emt 0:00:00]} 51. Ka4 {[%emt 0:00:00]} Bc6+ {[%emt 0:00:00]} 52. Bb5 {[%emt 0:00:00]} Be4 {[%emt 0:00:00]} 53. Kb3 {[%emt 0:00:00]} Bd5+ {[%emt 0:00:00]} 54. Bc4 {[%emt 0:00:00]} Be4 {[%emt 0:00:00]} 55. Bd2 {[%emt 0:00:00]} Bf5 {[%emt 0:00:00]} 56. Be1 {[%emt 0:00:00]} Be4 {[%emt 0:00:00]} 57. Be2 {[%emt 0:00:00]} Bd5+ {[%emt 0:00:00]} 58. Kc2 {[%emt 0:00:00]} Ke6 {[%emt 0:00:11]} 59. g4 {[%emt 0:00:00]} Be4+ {[%emt 0:03:02]} 60. Kd1 {[%emt 0:00:00]} hxg4 {[%emt 0:00:36]} 61. Bxg4+ {[%emt 0:00:00]} Kd5 {[%emt 0:00:27]} 62. h5 {[%emt 0:00:00]} gxh5 {[%emt 0:00:25]} 63. Bxh5 {[%emt 0:00:00]} Bf5 {[%emt 0:01:06]} 64. Bf3+ {[%emt 0:00:00]} Ke6 {[%emt 0:02:07]} 65. Bb7 {[%emt 0:01:42]} Bd3 {[%emt 0:00:22]} 66. Bc8+ {[%emt 0:02:32]} Kd5 {[%emt 0:01:27]} 67. e6 {[%emt 0:03:20]} Bd8 {[%emt 0:00:34]} 68. Bc3 {[%emt 0:04:01]} Be7 {[%emt 0:00:18]} 69. Kd2 {[%emt 0:00:31]} 1/2-1/2

[Event "Marienbad Open IM B 2025"]
[Site "Marianske Lazne"]
[Date "2025.01.19"]
[Round "2.11"]
[White "Konopka, Michal"]
[Black "Vaculik, Jakub"]
[Result "1-0"]
[Annotator "TA"]
[ECO "D02"]
[WhiteElo "2321"]
[BlackElo "2281"]
[PlyCount "51"]
[EventDate "2025.01.18"]
[EventType "tourn"]
[EventCountry "CZE"]
[SourceTitle "playchess.com"]
[Source "ChessBase"]
[SourceQuality "1"]
[TimeControl "40/5400+30:1800+30"]

{[%evp 9,50,25,20,19,25,29,33,37,39,36,23,22,70,66,78,72,84,85,81,80,79,75,68,73,75,75,129,98,76,89,82,93,120,115,97,112,154,162,158,120,789,789,29999]} 1. Nf3 {[%emt 0:00:01]} d5 {[%emt 0:01:58]} 2. d4 {[%emt 0:00:12]} Nf6 {[%emt 0:00:31]} 3. c4 {[%emt 0:00:14]} c6 {[%emt 0:01:27]} 4. g3 {[%emt 0:05:41]} Bf5 {[%emt 0:13:40]} 5. Nc3 {[%emt 0:01:40]} e6 {[%emt 0:04:02]} 6. Nh4 {[%emt 0:00:59]} Bg6 {[%emt 0:00:57]} 7. Qb3 {[%emt 0:01:12]} Qb6 {[%emt 0:04:31]} 8. Nxg6 {[%emt 0:00:43]} hxg6 {[%emt 0:01:51]} 9. c5 {[%emt 0:00:22]} Qxb3 {[%emt 0:05:06]} 10. axb3 {[%emt 0:01:29]} e5 {[%emt 0:00:07]} 11. e3 $14 {[%emt 0:12:36]} Be7 {[%emt 0:05:55]} 12. b4 {[%emt 0:01:20]} ({Reject} 12. dxe5 Nfd7 $11) 12... Nbd7 {[%emt 0:07:31]} 13. b5 {[%emt 0:03:00]} Ng4 {[%emt 0:04:45]} 14. bxc6 {[%emt 0:14:14]} bxc6 {[%emt 0:00:08]} 15. Ba6 {[%emt 0:26:21]} Rb8 {[%emt 0:21:12] Repels Bb7} 16. Be2 {[%emt 0:01:14]} Nh6 {[%emt 0:02:45]} 17. Rxa7 {[%emt 0:02:14][%cal Ba1a7,Ba7c7,Bc7c6,Bc6c8][%mdl 32]} Bf6 {[%emt 0:04:23]} (17... exd4 $142 18. exd4 Nf5) 18. O-O {[%emt 0:06:10]} exd4 {[%emt 0:07:15]} 19. exd4 {[%emt 0:01:43]} Bxd4 {[%emt 0:00:13]} 20. Bf4 {[%emt 0:02:28][%cal Bc1f4,Bf4d6,Bd6a3][%mdl 32]} Rd8 {[%emt 0:03:11]} 21. Rc7 {[%emt 0:08:11] White has more active pieces.} Nxc5 {[%emt 0:05:24]} 22. Rxc6 {[%emt 0:00:15]} Ne6 {[%emt 0:00:27]} 23. Bd6 {[%emt 0:03:27]} Nf5 {[%emt 0:02:35] and ...Kd7 would now be decisive} 24. Ba3 {Hoping for Bb5. This pair of bishops is nice.} Bxc3 $2 {[%emt 0:01:26][%mdl 8192]} (24... Ne7 $16 25. Ra6 Bc5) 25. Bb5 $18 {[%emt 0:01:50][%cal Rc6c8]} ({Less strong is} 25. bxc3 Kd7 26. Bb5 Rb8 27. Rd6+ Ke7 28. Rxd5+ Kf6 $18) (25. Rxc3 Nfd4 26. Ba6 Ra8 $16) 25... Rb8 {[%emt 0:01:06]} 26. Rc8# {[%emt 0:00:35]} 1-0

[Event "Marienbad Open IM B 2025"]
[Site "Marianske Lazne"]
[Date "2025.01.19"]
[Round "2.12"]
[White "Sliwerski, Radoslaw"]
[Black "Pisk, Petr"]
[Result "1/2-1/2"]
[Annotator "TA"]
[ECO "A41"]
[WhiteElo "2040"]
[BlackElo "2302"]
[PlyCount "30"]
[EventDate "2025.01.18"]
[EventType "tourn"]
[EventCountry "CZE"]
[SourceTitle "playchess.com"]
[Source "ChessBase"]
[SourceQuality "1"]
[TimeControl "40/5400+30:1800+30"]

{[%evp 9,30,54,57,53,64,46,52,57,66,43,46,38,65,54,56,70,64,64,71,3,2,0,2]} 1. d4 {[%emt 0:00:02]} d6 {[%emt 0:00:09]} 2. Nf3 {[%emt 0:00:04]} Bg4 {[%emt 0:00:10]} 3. c4 {[%emt 0:00:05]} Bxf3 {[%emt 0:04:44]} 4. exf3 {[%emt 0:00:02]} c6 {[%emt 0:00:19]} 5. Nc3 {[%emt 0:01:04]} g6 {[%emt 0:00:27]} 6. Be3 {[%emt 0:02:01]} Bg7 {[%emt 0:00:10]} 7. Qd2 {[%emt 0:00:15] White is more active.} Nd7 {[%emt 0:01:10]} 8. Be2 {[%emt 0:01:15]} Ngf6 {[%emt 0:00:41]} 9. O-O {[%emt 0:02:48]} O-O {[%emt 0:02:57]} 10. Rac1 {[%emt 0:01:18]} Re8 {[%emt 0:02:51]} 11. b3 {[%emt 0:00:39]} a6 {[%emt 0:04:18]} 12. d5 {[%emt 0:13:10]} Qa5 {[%emt 0:11:13]} 13. dxc6 {[%emt 0:09:41]} bxc6 {[%emt 0:01:13]} 14. Ne4 {[%emt 0:02:28]} (14. g4 $16) 14... Qxd2 $11 {[%emt 0:03:24]} 15. Nxd2 {[%emt 0:04:11]} a5 {[%emt 0:09:30]} 1/2-1/2